[Event "*** SCC Grand Prix: Titled Tuesday Blitz"]
[Site "Chess.com"]
[Date "2020.10.13"]
[Round "9"]
[White "karenzadita"]
[Black "Jumbo"]
[Result "0-1"]
[WhiteElo "2366"]
[BlackElo "2754"]
[TimeControl "180+1"]
[EndTime "11:44:40 PDT"]
[Termination "Jumbo won on time"]

1. e4 {[%clk 0:03:00.9]} 1... d6 {[%clk 0:02:59.6]} 2. d4 {[%clk 0:03:00.2]}
2... g6 {[%clk 0:02:57]} 3. Nc3 {[%clk 0:02:59.7]} 3... Bg7 {[%clk 0:02:57.5]}
4. Be3 {[%clk 0:02:59.5]} 4... c6 {[%clk 0:02:54.6]} 5. a4 {[%clk 0:02:54.7]}
5... Nf6 {[%clk 0:02:44]} 6. h3 {[%clk 0:02:54.9]} 6... O-O {[%clk 0:02:40.8]}
7. Nf3 {[%clk 0:02:52.7]} 7... Nbd7 {[%clk 0:02:39.8]} 8. a5 {[%clk 0:02:50.7]}
8... Qc7 {[%clk 0:02:34.4]} 9. Qd2 {[%clk 0:02:32.1]} 9... Rb8 {[%clk
0:02:26.9]} 10. Be2 {[%clk 0:02:18.7]} 10... b5 {[%clk 0:02:24.7]} 11. axb6
{[%clk 0:02:15.8]} 11... axb6 {[%clk 0:02:25.6]} 12. O-O {[%clk 0:02:15.1]}
12... b5 {[%clk 0:02:24.7]} 13. b4 {[%clk 0:02:13.8]} 13... Nb6 {[%clk
0:02:12.9]} 14. e5 {[%clk 0:01:57.2]} 14... Nfd5 {[%clk 0:02:11.4]} 15. Nxd5
{[%clk 0:01:51.1]} 15... Nxd5 {[%clk 0:02:12.3]} 16. Bh6 {[%clk 0:01:34.1]}
16... f6 {[%clk 0:02:11.3]} 17. Bxg7 {[%clk 0:01:32.2]} 17... Kxg7 {[%clk
0:02:10.2]} 18. exd6 {[%clk 0:01:25.2]} 18... exd6 {[%clk 0:02:00.8]} 19. c3
{[%clk 0:01:23.2]} 19... Re8 {[%clk 0:01:59.8]} 20. Bd3 {[%clk 0:01:21.3]} 20...
Be6 {[%clk 0:01:51.4]} 21. Rfe1 {[%clk 0:01:11.4]} 21... Bf7 {[%clk 0:01:49.3]}
22. Ra5 {[%clk 0:01:08.1]} 22... Rxe1+ {[%clk 0:01:45.5]} 23. Qxe1 {[%clk
0:01:06.3]} 23... Re8 {[%clk 0:01:45.9]} 24. Qa1 {[%clk 0:01:06.1]} 24... Re7
{[%clk 0:01:44.5]} 25. g3 {[%clk 0:00:56.7]} 25... Qd7 {[%clk 0:01:36.3]} 26.
Kg2 {[%clk 0:00:56.4]} 26... Nb6 {[%clk 0:01:36.8]} 27. Ra6 {[%clk 0:00:49.3]}
27... Na4 {[%clk 0:01:36.1]} 28. c4 {[%clk 0:00:42.7]} 28... Qb7 {[%clk
0:01:27.4]} 29. cxb5 {[%clk 0:00:25.4]} 29... cxb5 {[%clk 0:01:23.8]} 30. Rxd6
{[%clk 0:00:25.6]} 30... Bd5 {[%clk 0:01:24.2]} 31. Rxd5 {[%clk 0:00:16.4]}
31... Qxd5 {[%clk 0:01:25.1]} 32. Qf1 {[%clk 0:00:15.6]} 32... Nc3 {[%clk
0:01:17.2]} 33. Qc1 {[%clk 0:00:12.7]} 33... Ne4 {[%clk 0:00:52.5]} 34. Qf4
{[%clk 0:00:05.3]} 34... Nd6 {[%clk 0:00:35.9]} 35. Kg1 {[%clk 0:00:03.2]} 35...
h5 {[%clk 0:00:26.6]} 36. Nd2 {[%clk 0:00:03]} 36... g5 {[%clk 0:00:23]} 37. Qf3
{[%clk 0:00:02.2]} 37... Re1+ {[%clk 0:00:21.6]} 38. Kg2 {[%clk 0:00:01.7]}
38... Qxf3+ {[%clk 0:00:21.7]} 39. Nxf3 {[%clk 0:00:01]} 39... Rd1 {[%clk
0:00:21.2]} 0-1

[Event "*** SCC Grand Prix: Titled Tuesday Blitz"]
[Site "Chess.com"]
[Date "2020.10.13"]
[Round "9"]
[White "RaunakSadhwani2005"]
[Black "tsvet2005"]
[Result "1-0"]
[WhiteElo "2948"]
[BlackElo "2713"]
[TimeControl "180+1"]
[EndTime "11:44:41 PDT"]
[Termination "RaunakSadhwani2005 won by resignation"]

1. c4 {[%clk 0:03:00.9]} 1... e6 {[%clk 0:03:00.2]} 2. Nf3 {[%clk 0:03:00]} 2...
d5 {[%clk 0:03:01.1]} 3. d4 {[%clk 0:03:00.2]} 3... Nf6 {[%clk 0:03:01.3]} 4. g3
{[%clk 0:03:00.7]} 4... dxc4 {[%clk 0:03:01.6]} 5. Bg2 {[%clk 0:02:59.5]} 5...
Bb4+ {[%clk 0:03:02.2]} 6. Bd2 {[%clk 0:02:59]} 6... a5 {[%clk 0:03:02.8]} 7.
O-O {[%clk 0:02:58.7]} 7... O-O {[%clk 0:03:02.1]} 8. a3 {[%clk 0:02:51.8]} 8...
Bxd2 {[%clk 0:03:01.9]} 9. Nbxd2 {[%clk 0:02:52.7]} 9... b5 {[%clk 0:03:02.2]}
10. a4 {[%clk 0:02:51.5]} 10... c6 {[%clk 0:03:01.6]} 11. Ne5 {[%clk 0:02:51.6]}
11... Ra6 {[%clk 0:03:01.5]} 12. e3 {[%clk 0:02:49]} 12... Nd5 {[%clk
0:02:55.7]} 13. Ne4 {[%clk 0:02:48.2]} 13... Nd7 {[%clk 0:02:52.3]} 14. Nxd7
{[%clk 0:02:48.2]} 14... Bxd7 {[%clk 0:02:53.2]} 15. Nc5 {[%clk 0:02:48]} 15...
Ra7 {[%clk 0:02:51.4]} 16. b3 {[%clk 0:02:41.7]} 16... cxb3 {[%clk 0:02:44.4]}
17. Qxb3 {[%clk 0:02:42.6]} 17... b4 {[%clk 0:02:43.5]} 18. Rfc1 {[%clk
0:02:39.2]} 18... Nc3 {[%clk 0:02:30.1]} 19. Rc2 {[%clk 0:02:29.7]} 19... Qe7
{[%clk 0:02:12.9]} 20. f4 {[%clk 0:02:26.6]} 20... Kh8 {[%clk 0:01:57.7]} 21.
Ne4 {[%clk 0:02:24.3]} 21... Nd5 {[%clk 0:01:53.9]} 22. Rac1 {[%clk 0:02:21.6]}
22... f6 {[%clk 0:01:52.4]} 23. Nc5 {[%clk 0:02:00.2]} 23... Nc3 {[%clk
0:01:50.9]} 24. Bh3 {[%clk 0:01:58.9]} 24... Re8 {[%clk 0:01:44.9]} 25. Qc4
{[%clk 0:01:52.9]} 25... Bc8 {[%clk 0:01:39.9]} 26. Rf2 {[%clk 0:01:42.1]} 26...
Qd6 {[%clk 0:01:34.6]} 27. e4 {[%clk 0:01:34]} 27... Rae7 {[%clk 0:01:20.3]} 28.
e5 {[%clk 0:01:33.3]} 28... Qd5 {[%clk 0:01:17.5]} 29. Qd3 {[%clk 0:01:13.6]}
29... Rd8 {[%clk 0:01:16.3]} 30. Rd2 {[%clk 0:01:07.1]} 30... Ree8 {[%clk
0:01:04.3]} 31. Re1 {[%clk 0:00:58.7]} 31... fxe5 {[%clk 0:00:47.9]} 32. fxe5
{[%clk 0:00:45.4]} 32... Qxc5 {[%clk 0:00:22.8]} 33. dxc5 {[%clk 0:00:46.3]}
33... Rxd3 {[%clk 0:00:23.5]} 34. Rxd3 {[%clk 0:00:47.2]} 34... Nd5 {[%clk
0:00:24.4]} 35. Rf3 {[%clk 0:00:43.7]} 35... Kg8 {[%clk 0:00:19.6]} 36. Ref1
{[%clk 0:00:43.8]} 36... h6 {[%clk 0:00:17.6]} 37. Rf7 {[%clk 0:00:36.7]} 37...
Ba6 {[%clk 0:00:14.9]} 38. Rf8+ {[%clk 0:00:32.8]} 38... Rxf8 {[%clk 0:00:07]}
39. Bxe6+ {[%clk 0:00:33.1]} 39... Kh7 {[%clk 0:00:07.9]} 40. Rxf8 {[%clk
0:00:33.2]} 40... Nc3 {[%clk 0:00:05.5]} 41. Bg8+ {[%clk 0:00:31.1]} 41... Kg6
{[%clk 0:00:05.5]} 42. e6 {[%clk 0:00:26.4]} 42... b3 {[%clk 0:00:04.7]} 43. e7
{[%clk 0:00:26]} 43... b2 {[%clk 0:00:05.2]} 44. e8=Q+ {[%clk 0:00:25.8]} 1-0

[Event "*** SCC Grand Prix: Titled Tuesday Blitz"]
[Site "Chess.com"]
[Date "2020.10.13"]
[Round "9"]
[White "TheMagnet"]
[Black "GMSrinath"]
[Result "0-1"]
[WhiteElo "2591"]
[BlackElo "2804"]
[TimeControl "180+1"]
[EndTime "11:44:43 PDT"]
[Termination "GMSrinath won by resignation"]

1. d4 {[%clk 0:02:43.8]} 1... Nf6 {[%clk 0:02:58.4]} 2. c4 {[%clk 0:02:41.4]}
2... e6 {[%clk 0:02:58.7]} 3. Nc3 {[%clk 0:02:41.7]} 3... Bb4 {[%clk 0:02:58.1]}
4. f3 {[%clk 0:02:42.1]} 4... d5 {[%clk 0:02:51.4]} 5. a3 {[%clk 0:02:41.5]}
5... Bxc3+ {[%clk 0:02:51.3]} 6. bxc3 {[%clk 0:02:42.4]} 6... c6 {[%clk
0:02:51.7]} 7. cxd5 {[%clk 0:02:38.6]} 7... cxd5 {[%clk 0:02:45.8]} 8. e3 {[%clk
0:02:38.2]} 8... O-O {[%clk 0:02:22.2]} 9. Bd3 {[%clk 0:02:38]} 9... b6 {[%clk
0:02:21.8]} 10. Ne2 {[%clk 0:02:37.7]} 10... Ba6 {[%clk 0:02:21.7]} 11. O-O
{[%clk 0:02:38]} 11... Bxd3 {[%clk 0:02:06.1]} 12. Qxd3 {[%clk 0:02:38.9]} 12...
Nbd7 {[%clk 0:02:06.8]} 13. Ng3 {[%clk 0:02:28.8]} 13... h5 {[%clk 0:01:55.1]}
14. Bb2 {[%clk 0:02:09.1]} 14... Rc8 {[%clk 0:01:51.9]} 15. Rae1 {[%clk
0:02:07.7]} 15... h4 {[%clk 0:01:50.4]} 16. Nh1 {[%clk 0:02:07.4]} 16... e5
{[%clk 0:01:26.2]} 17. e4 {[%clk 0:01:59.1]} 17... h3 {[%clk 0:01:23.6]} 18. g3
{[%clk 0:01:40.4]} 18... dxe4 {[%clk 0:01:18.5]} 19. fxe4 {[%clk 0:01:40.4]}
19... exd4 {[%clk 0:01:19.1]} 20. cxd4 {[%clk 0:01:38.4]} 20... Ne5 {[%clk
0:01:18.9]} 21. Qe2 {[%clk 0:01:30.8]} 21... Nc4 {[%clk 0:01:16.4]} 22. Nf2
{[%clk 0:01:23.8]} 22... Re8 {[%clk 0:01:15.3]} 23. e5 {[%clk 0:01:15.6]} 23...
Qd7 {[%clk 0:01:12.6]} 24. Rd1 {[%clk 0:00:55.6]} 24... Nd5 {[%clk 0:01:10.4]}
25. Bc1 {[%clk 0:00:52.4]} 25... Nc3 {[%clk 0:01:10.2]} 26. Qh5 {[%clk
0:00:48.6]} 26... Nxd1 {[%clk 0:01:06.2]} 27. Rxd1 {[%clk 0:00:49.5]} 27... Rcd8
{[%clk 0:00:26.3]} 28. Bf4 {[%clk 0:00:37]} 28... Qa4 {[%clk 0:00:20.8]} 29.
Qxh3 {[%clk 0:00:31.5]} 29... Nb2 {[%clk 0:00:19.6]} 30. Rb1 {[%clk 0:00:26.7]}
30... Qxd4 {[%clk 0:00:18.9]} 31. Qg4 {[%clk 0:00:24.7]} 31... Nd3 {[%clk
0:00:18.5]} 32. Rf1 {[%clk 0:00:21.9]} 32... Nxf2 {[%clk 0:00:17.1]} 33. Rxf2
{[%clk 0:00:22.8]} 33... Rxe5 {[%clk 0:00:17.8]} 34. Qh4 {[%clk 0:00:22.7]}
34... Re1+ {[%clk 0:00:16.6]} 35. Kg2 {[%clk 0:00:22.6]} 35... Qd5+ {[%clk
0:00:17.2]} 36. Kh3 {[%clk 0:00:23]} 36... Re6 {[%clk 0:00:16.8]} 37. Bg5 {[%clk
0:00:21.5]} 37... Rde8 {[%clk 0:00:16]} 38. Qf4 {[%clk 0:00:20.7]} 38... f6
{[%clk 0:00:15.1]} 39. Bh4 {[%clk 0:00:20.8]} 39... Qd7 {[%clk 0:00:15.6]} 40.
Kg2 {[%clk 0:00:20.9]} 40... Re2 {[%clk 0:00:14.9]} 41. Qc4+ {[%clk 0:00:21]}
41... Qe6 {[%clk 0:00:14.1]} 42. Rxe2 {[%clk 0:00:15.1]} 42... Qxc4 {[%clk
0:00:14.6]} 43. Rxe8+ {[%clk 0:00:15]} 43... Kf7 {[%clk 0:00:15.2]} 44. Re3
{[%clk 0:00:15.1]} 44... Qc6+ {[%clk 0:00:14.4]} 45. Kf2 {[%clk 0:00:14.8]}
45... g5 {[%clk 0:00:14.9]} 46. Bxg5 {[%clk 0:00:14.7]} 46... fxg5 {[%clk
0:00:15.8]} 0-1

[Event "*** SCC Grand Prix: Titled Tuesday Blitz"]
[Site "Chess.com"]
[Date "2020.10.13"]
[Round "9"]
[White "gmpeter008"]
[Black "olksuna"]
[Result "1/2-1/2"]
[WhiteElo "2420"]
[BlackElo "2609"]
[TimeControl "180+1"]
[EndTime "11:44:50 PDT"]
[Termination "Game drawn by repetition"]

1. d4 {[%clk 0:03:00.9]} 1... Nf6 {[%clk 0:02:59.6]} 2. Nf3 {[%clk 0:02:59.3]}
2... e6 {[%clk 0:02:58.2]} 3. Bf4 {[%clk 0:02:58.9]} 3... b5 {[%clk 0:02:56.9]}
4. e3 {[%clk 0:02:57.2]} 4... a6 {[%clk 0:02:54.9]} 5. a4 {[%clk 0:02:53.7]}
5... b4 {[%clk 0:02:53.1]} 6. c3 {[%clk 0:02:53.2]} 6... Bb7 {[%clk 0:02:52.1]}
7. Bd3 {[%clk 0:02:52.7]} 7... c5 {[%clk 0:02:44.2]} 8. Nbd2 {[%clk 0:02:52.5]}
8... bxc3 {[%clk 0:02:39.4]} 9. bxc3 {[%clk 0:02:52.2]} 9... Nd5 {[%clk
0:02:40]} 10. Qb3 {[%clk 0:02:49.5]} 10... Nxf4 {[%clk 0:02:36.6]} 11. exf4
{[%clk 0:02:45.8]} 11... Bd5 {[%clk 0:02:32.2]} 12. Bc4 {[%clk 0:02:45]} 12...
Bxf3 {[%clk 0:02:10.9]} 13. Nxf3 {[%clk 0:02:44.5]} 13... Nc6 {[%clk 0:02:11.6]}
14. O-O {[%clk 0:02:42.3]} 14... d5 {[%clk 0:02:00.8]} 15. Be2 {[%clk 0:02:13]}
15... c4 {[%clk 0:01:49.4]} 16. Qc2 {[%clk 0:02:11.6]} 16... Bd6 {[%clk
0:01:47.7]} 17. f5 {[%clk 0:02:11.4]} 17... O-O {[%clk 0:01:45.8]} 18. h4 {[%clk
0:01:57.8]} 18... h6 {[%clk 0:01:41.4]} 19. Rab1 {[%clk 0:01:49.6]} 19... Rb8
{[%clk 0:01:35.4]} 20. Rxb8 {[%clk 0:01:45.4]} 20... Bxb8 {[%clk 0:01:36.3]} 21.
Rb1 {[%clk 0:01:41.5]} 21... Bc7 {[%clk 0:01:29]} 22. Rb7 {[%clk 0:01:29]} 22...
Na5 {[%clk 0:01:23.6]} 23. Rb1 {[%clk 0:01:23.5]} 23... Qf6 {[%clk 0:01:15.6]}
24. fxe6 {[%clk 0:01:08]} 24... fxe6 {[%clk 0:01:15.7]} 25. Re1 {[%clk
0:00:58.6]} 25... Nb3 {[%clk 0:01:12.9]} 26. Bd1 {[%clk 0:00:57.3]} 26... Kh8
{[%clk 0:00:44.3]} 27. g3 {[%clk 0:00:37]} 27... Re8 {[%clk 0:00:25.6]} 28. h5
{[%clk 0:00:35]} 28... Kg8 {[%clk 0:00:23.1]} 29. Nh4 {[%clk 0:00:25.8]} 29...
Qg5 {[%clk 0:00:17.5]} 30. Kg2 {[%clk 0:00:14.3]} 30... Bd6 {[%clk 0:00:08.1]}
31. Bf3 {[%clk 0:00:13.1]} 31... Nd2 {[%clk 0:00:06.6]} 32. Bxd5 {[%clk
0:00:12.5]} 32... Qxd5+ {[%clk 0:00:04.7]} 33. Kh3 {[%clk 0:00:13.1]} 33... Nf3
{[%clk 0:00:04.8]} 34. Qg6 {[%clk 0:00:12.4]} 34... Rf8 {[%clk 0:00:03.7]} 35.
Rxe6 {[%clk 0:00:12]} 35... Nxh4 {[%clk 0:00:03.2]} 36. Kxh4 {[%clk 0:00:12.1]}
36... Qh1+ {[%clk 0:00:03.2]} 37. Kg4 {[%clk 0:00:11.8]} 37... Qd1+ {[%clk
0:00:03.8]} 38. Kh4 {[%clk 0:00:10.9]} 38... Bc7 {[%clk 0:00:04.2]} 39. Re7
{[%clk 0:00:09.9]} 39... Qh1+ {[%clk 0:00:04.3]} 40. Kg4 {[%clk 0:00:10.4]}
40... Qd1+ {[%clk 0:00:04]} 41. Kh4 {[%clk 0:00:11]} 41... Qh1+ {[%clk
0:00:03.9]} 42. Kg4 {[%clk 0:00:11.5]} 42... Qd1+ {[%clk 0:00:04.2]} 43. Kh4
{[%clk 0:00:12]} 1/2-1/2

[Event "*** SCC Grand Prix: Titled Tuesday Blitz"]
[Site "Chess.com"]
[Date "2020.10.13"]
[Round "9"]
[White "Shield12"]
[Black "vaishali2001"]
[Result "1/2-1/2"]
[WhiteElo "2826"]
[BlackElo "2601"]
[TimeControl "180+1"]
[EndTime "11:44:59 PDT"]
[Termination "Game drawn by repetition"]

1. e4 {[%clk 0:03:00.9]} 1... c5 {[%clk 0:02:59.5]} 2. Nf3 {[%clk 0:03:01]} 2...
Nc6 {[%clk 0:02:59.8]} 3. Bb5 {[%clk 0:03:00.4]} 3... g6 {[%clk 0:02:59.6]} 4.
Bxc6 {[%clk 0:03:00]} 4... bxc6 {[%clk 0:02:58.2]} 5. O-O {[%clk 0:02:59.8]}
5... Bg7 {[%clk 0:02:57.9]} 6. Re1 {[%clk 0:03:00.7]} 6... Nh6 {[%clk
0:02:56.9]} 7. c3 {[%clk 0:03:00.3]} 7... O-O {[%clk 0:02:57]} 8. h3 {[%clk
0:02:59.5]} 8... f6 {[%clk 0:02:45]} 9. d4 {[%clk 0:02:59.1]} 9... cxd4 {[%clk
0:02:45.2]} 10. cxd4 {[%clk 0:03:00]} 10... d5 {[%clk 0:02:45.6]} 11. Nc3 {[%clk
0:02:45.6]} 11... Rb8 {[%clk 0:02:05.6]} 12. b3 {[%clk 0:02:41.2]} 12... dxe4
{[%clk 0:01:53.2]} 13. Nxe4 {[%clk 0:02:42.1]} 13... Be6 {[%clk 0:01:45.6]} 14.
Bf4 {[%clk 0:02:34.1]} 14... Rb4 {[%clk 0:01:37.9]} 15. Qd2 {[%clk 0:02:30.5]}
15... a5 {[%clk 0:01:24.9]} 16. Bxh6 {[%clk 0:02:28.5]} 16... Bxh6 {[%clk
0:00:59.5]} 17. Qxh6 {[%clk 0:02:29.4]} 17... Bd5 {[%clk 0:00:55.6]} 18. Qe3
{[%clk 0:02:06.4]} 18... e5 {[%clk 0:00:51.9]} 19. Rad1 {[%clk 0:02:01.3]} 19...
f5 {[%clk 0:00:49.7]} 20. Nc3 {[%clk 0:02:00.9]} 20... e4 {[%clk 0:00:46.1]} 21.
Ne5 {[%clk 0:01:55.4]} 21... f4 {[%clk 0:00:42.9]} 22. Qc1 {[%clk 0:01:55.4]}
22... f3 {[%clk 0:00:28.2]} 23. Nxd5 {[%clk 0:01:50.6]} 23... cxd5 {[%clk
0:00:24.8]} 24. Nc6 {[%clk 0:01:49.6]} 24... Qh4 {[%clk 0:00:23.8]} 25. Nxb4
{[%clk 0:01:48.4]} 25... fxg2 {[%clk 0:00:23.5]} 26. Qe3 {[%clk 0:01:23.1]}
26... Rf3 {[%clk 0:00:23]} 27. Kxg2 {[%clk 0:00:42]} 27... Qxh3+ {[%clk
0:00:21.9]} 28. Kg1 {[%clk 0:00:42.3]} 28... Qg4+ {[%clk 0:00:18.5]} 29. Kf1
{[%clk 0:00:41.4]} 29... Qh3+ {[%clk 0:00:18.8]} 30. Kg1 {[%clk 0:00:41.3]}
30... Qg4+ {[%clk 0:00:19]} 31. Kf1 {[%clk 0:00:41.5]} 31... Rxe3 {[%clk
0:00:13.8]} 32. fxe3 {[%clk 0:00:42.4]} 32... Qf3+ {[%clk 0:00:13.5]} 33. Kg1
{[%clk 0:00:42.5]} 33... Qg3+ {[%clk 0:00:13.8]} 34. Kf1 {[%clk 0:00:42.5]}
34... axb4 {[%clk 0:00:12.8]} 35. Rd2 {[%clk 0:00:42.6]} 35... h5 {[%clk
0:00:11.6]} 36. Rg2 {[%clk 0:00:41.6]} 36... Qf3+ {[%clk 0:00:11.8]} 37. Rf2
{[%clk 0:00:41.6]} 37... Qh3+ {[%clk 0:00:11.9]} 38. Ke2 {[%clk 0:00:39.8]}
38... Kh7 {[%clk 0:00:12.2]} 39. Rg1 {[%clk 0:00:38.1]} 39... Qc8 {[%clk
0:00:10.3]} 40. Rf7+ {[%clk 0:00:23.8]} 40... Kh6 {[%clk 0:00:09.7]} 41. Rf6
{[%clk 0:00:14.2]} 41... Qc2+ {[%clk 0:00:09.5]} 42. Ke1 {[%clk 0:00:14]} 42...
Qc1+ {[%clk 0:00:07.3]} 43. Kf2 {[%clk 0:00:14.3]} 43... Qd2+ {[%clk 0:00:07.3]}
44. Kf1 {[%clk 0:00:14.8]} 44... Qc1+ {[%clk 0:00:05.5]} 45. Kf2 {[%clk
0:00:14.7]} 45... Qd2+ {[%clk 0:00:05.9]} 46. Kf1 {[%clk 0:00:15]} 46... Qd1+
{[%clk 0:00:05.4]} 47. Kf2 {[%clk 0:00:14.6]} 47... Qd2+ {[%clk 0:00:05.4]}
1/2-1/2

[Event "*** SCC Grand Prix: Titled Tuesday Blitz"]
[Site "Chess.com"]
[Date "2020.10.13"]
[Round "9"]
[White "fabianvivasz"]
[Black "picturesquecheck"]
[Result "0-1"]
[WhiteElo "2329"]
[BlackElo "2238"]
[TimeControl "180+1"]
[EndTime "11:45:01 PDT"]
[Termination "picturesquecheck won by checkmate"]

1. e4 {[%clk 0:03:00.8]} 1... c5 {[%clk 0:02:53.4]} 2. Nc3 {[%clk 0:02:59.3]}
2... Nc6 {[%clk 0:02:52.9]} 3. Bb5 {[%clk 0:02:59]} 3... g6 {[%clk 0:02:53.1]}
4. Bxc6 {[%clk 0:02:58.8]} 4... dxc6 {[%clk 0:02:51.5]} 5. f4 {[%clk 0:02:57.9]}
5... Bg7 {[%clk 0:02:51.4]} 6. Nf3 {[%clk 0:02:58]} 6... Nf6 {[%clk 0:02:51.4]}
7. d3 {[%clk 0:02:57.7]} 7... O-O {[%clk 0:02:50.6]} 8. O-O {[%clk 0:02:55.4]}
8... b6 {[%clk 0:02:49.4]} 9. Qe1 {[%clk 0:02:54.7]} 9... Nd7 {[%clk 0:02:44.8]}
10. f5 {[%clk 0:02:45.4]} 10... b5 {[%clk 0:02:31.5]} 11. Qh4 {[%clk 0:02:34]}
11... b4 {[%clk 0:02:27.8]} 12. Ne2 {[%clk 0:02:23.3]} 12... Ba6 {[%clk
0:02:26.2]} 13. Bh6 {[%clk 0:02:20.8]} 13... c4 {[%clk 0:02:23.8]} 14. Ng5
{[%clk 0:02:16.6]} 14... Bf6 {[%clk 0:01:53.5]} 15. Bxf8 {[%clk 0:02:10.3]}
15... Nxf8 {[%clk 0:01:52.7]} 16. Qg3 {[%clk 0:01:16.9]} 16... cxd3 {[%clk
0:01:51.3]} 17. Rfd1 {[%clk 0:01:09.5]} 17... Bxb2 {[%clk 0:01:40.8]} 18. fxg6
{[%clk 0:00:57.7]} 18... hxg6 {[%clk 0:01:37.3]} 19. cxd3 {[%clk 0:00:44.2]}
19... Bxa1 {[%clk 0:01:36.4]} 20. Rxa1 {[%clk 0:00:44.1]} 20... Qxd3 {[%clk
0:01:36]} 21. Qf2 {[%clk 0:00:27.8]} 21... Qxe2 {[%clk 0:01:33.8]} 22. Qxf7+
{[%clk 0:00:27.5]} 22... Kh8 {[%clk 0:01:31.1]} 23. Qxe7 {[%clk 0:00:27.8]}
23... Qe3+ {[%clk 0:01:29.9]} 24. Kh1 {[%clk 0:00:27.2]} 24... Qd4 {[%clk
0:01:16.9]} 25. Nf7+ {[%clk 0:00:21.8]} 25... Kg8 {[%clk 0:01:16.1]} 26. Nh6+
{[%clk 0:00:21.4]} 26... Kh8 {[%clk 0:01:16.4]} 27. Re1 {[%clk 0:00:19.2]} 27...
Qg7 {[%clk 0:01:14.3]} 28. Qh4 {[%clk 0:00:18.9]} 28... Nh7 {[%clk 0:01:09.3]}
29. e5 {[%clk 0:00:19.2]} 29... g5 {[%clk 0:01:07.5]} 30. Qh5 {[%clk 0:00:18.1]}
30... Bc4 {[%clk 0:01:05.9]} 31. h3 {[%clk 0:00:16.3]} 31... Rf8 {[%clk
0:01:02.1]} 32. e6 {[%clk 0:00:14.2]} 32... Nf6 {[%clk 0:01:02.1]} 33. Nf7+
{[%clk 0:00:07.6]} 33... Kg8 {[%clk 0:01:01.2]} 34. Qf3 {[%clk 0:00:03.8]} 34...
Rxf7 {[%clk 0:00:59.4]} 35. exf7+ {[%clk 0:00:02.9]} 35... Bxf7 {[%clk
0:01:00.3]} 36. Qxc6 {[%clk 0:00:02.9]} 36... Nd5 {[%clk 0:00:58.5]} 37. Qc8+
{[%clk 0:00:03.3]} 37... Kh7 {[%clk 0:00:57.5]} 38. Qf5+ {[%clk 0:00:03.6]}
38... Qg6 {[%clk 0:00:57.7]} 39. Qe5 {[%clk 0:00:03.2]} 39... Nf4 {[%clk
0:00:56.4]} 40. Rf1 {[%clk 0:00:03]} 40... Bd5 {[%clk 0:00:53.6]} 41. Qd4 {[%clk
0:00:02.4]} 41... Bxg2+ {[%clk 0:00:53.2]} 42. Kh2 {[%clk 0:00:02.7]} 42... Bxf1
{[%clk 0:00:54.1]} 43. Qxb4 {[%clk 0:00:02.7]} 43... Bxh3 {[%clk 0:00:53.7]} 44.
Qe7+ {[%clk 0:00:02]} 44... Qg7 {[%clk 0:00:53.8]} 45. Qxg7+ {[%clk 0:00:01.4]}
45... Kxg7 {[%clk 0:00:54.7]} 46. Kg3 {[%clk 0:00:01.2]} 46... Be6 {[%clk
0:00:54.5]} 47. a3 {[%clk 0:00:00.7]} 47... Kf6 {[%clk 0:00:55]} 48. Kf3 {[%clk
0:00:01.1]} 48... Kf5 {[%clk 0:00:55.5]} 49. a4 {[%clk 0:00:02]} 49... g4+
{[%clk 0:00:55.4]} 50. Kg3 {[%clk 0:00:02.4]} 50... Nh5+ {[%clk 0:00:55.2]} 51.
Kf2 {[%clk 0:00:02.4]} 51... Kf4 {[%clk 0:00:55.3]} 52. Kg2 {[%clk 0:00:03.3]}
52... g3 {[%clk 0:00:55.2]} 53. a5 {[%clk 0:00:04.1]} 53... Bd5+ {[%clk
0:00:54.6]} 54. Kh3 {[%clk 0:00:04.6]} 54... g2 {[%clk 0:00:52.7]} 55. Kh2
{[%clk 0:00:05.5]} 55... Kg4 {[%clk 0:00:51.4]} 56. a6 {[%clk 0:00:06]} 56...
Nf4 {[%clk 0:00:50.4]} 57. Kg1 {[%clk 0:00:06.3]} 57... Nh3+ {[%clk 0:00:50.5]}
58. Kh2 {[%clk 0:00:06.4]} 58... g1=Q# {[%clk 0:00:50.1]} 0-1

[Event "*** SCC Grand Prix: Titled Tuesday Blitz"]
[Site "Chess.com"]
[Date "2020.10.13"]
[Round "9"]
[White "Margarita2907"]
[Black "niki_2003"]
[Result "1-0"]
[WhiteElo "2172"]
[BlackElo "1791"]
[TimeControl "180+1"]
[EndTime "11:45:01 PDT"]
[Termination "Margarita2907 won by checkmate"]

1. e4 {[%clk 0:03:00.9]} 1... c5 {[%clk 0:02:58.3]} 2. Nf3 {[%clk 0:02:58.7]}
2... d6 {[%clk 0:02:57.7]} 3. d4 {[%clk 0:02:58.6]} 3... cxd4 {[%clk 0:02:58.1]}
4. Nxd4 {[%clk 0:02:58.4]} 4... Nf6 {[%clk 0:02:58.6]} 5. Nc3 {[%clk 0:02:56.2]}
5... g6 {[%clk 0:02:59]} 6. Be3 {[%clk 0:02:51.1]} 6... Bg7 {[%clk 0:02:59.4]}
7. f3 {[%clk 0:02:48.8]} 7... Nc6 {[%clk 0:02:59.8]} 8. Qd2 {[%clk 0:02:46.5]}
8... O-O {[%clk 0:03:00]} 9. Bc4 {[%clk 0:02:43.4]} 9... Bd7 {[%clk 0:03:00]}
10. h4 {[%clk 0:02:41.6]} 10... Rc8 {[%clk 0:02:57.7]} 11. Bb3 {[%clk
0:02:40.9]} 11... h5 {[%clk 0:02:58.3]} 12. O-O-O {[%clk 0:02:38.9]} 12... Ne5
{[%clk 0:02:58.5]} 13. Bg5 {[%clk 0:02:32.7]} 13... Nc4 {[%clk 0:02:52.3]} 14.
Bxc4 {[%clk 0:02:25.3]} 14... Rxc4 {[%clk 0:02:51.9]} 15. Nce2 {[%clk
0:02:16.3]} 15... Ra4 {[%clk 0:02:44.3]} 16. Kb1 {[%clk 0:02:12.9]} 16... Qa5
{[%clk 0:02:40.3]} 17. Qxa5 {[%clk 0:02:09.9]} 17... Rxa5 {[%clk 0:02:40.7]} 18.
Nc3 {[%clk 0:02:07.6]} 18... Ra6 {[%clk 0:02:34.6]} 19. Nb3 {[%clk 0:01:57.5]}
19... Be6 {[%clk 0:02:31.2]} 20. Nd5 {[%clk 0:01:52.5]} 20... Nxd5 {[%clk
0:02:25.6]} 21. exd5 {[%clk 0:01:51.6]} 21... Bf5 {[%clk 0:02:25.8]} 22. Bxe7
{[%clk 0:01:50.2]} 22... Rc8 {[%clk 0:02:20.8]} 23. Rd2 {[%clk 0:01:48.6]} 23...
f6 {[%clk 0:02:15.7]} 24. Nd4 {[%clk 0:01:33.5]} 24... Kf7 {[%clk 0:02:12.6]}
25. Re1 {[%clk 0:01:27.7]} 25... Bh6 {[%clk 0:01:34.1]} 26. Rde2 {[%clk
0:01:24.1]} 26... Bd7 {[%clk 0:01:33.9]} 27. c3 {[%clk 0:00:51.1]} 27... Bf4
{[%clk 0:01:32.4]} 28. Ne6 {[%clk 0:00:26.2]} 28... Bg3 {[%clk 0:01:27.5]} 29.
Nd8+ {[%clk 0:00:21.8]} 29... Kg7 {[%clk 0:01:19.4]} 30. Rd1 {[%clk 0:00:20.3]}
30... Bxh4 {[%clk 0:01:05]} 31. Ne6+ {[%clk 0:00:12.9]} 31... Kf7 {[%clk
0:01:03.6]} 32. Nd8+ {[%clk 0:00:12.2]} 32... Kg7 {[%clk 0:01:03.3]} 33. a3
{[%clk 0:00:11.3]} 33... Ba4 {[%clk 0:00:55.9]} 34. Rh1 {[%clk 0:00:09.4]} 34...
Bg5 {[%clk 0:00:54]} 35. Ne6+ {[%clk 0:00:07.6]} 35... Kh6 {[%clk 0:00:47.4]}
36. Nxg5 {[%clk 0:00:08.5]} 36... fxg5 {[%clk 0:00:47.7]} 37. Bf6 {[%clk
0:00:07.2]} 37... Bd7 {[%clk 0:00:43.8]} 38. Rhe1 {[%clk 0:00:04.1]} 38... Bf5+
{[%clk 0:00:43]} 39. Ka2 {[%clk 0:00:02.7]} 39... Bd3 {[%clk 0:00:37.6]} 40. Re7
{[%clk 0:00:03.2]} 40... Bc4+ {[%clk 0:00:37.8]} 41. Ka1 {[%clk 0:00:03.2]}
41... h4 {[%clk 0:00:36.3]} 42. Rd7 {[%clk 0:00:03.2]} 42... Rf8 {[%clk
0:00:31.4]} 43. Ree7 {[%clk 0:00:03.7]} 43... Bxd5 {[%clk 0:00:14.4]} 44. Rh7#
{[%clk 0:00:03.3]} 1-0